Workbook

Sheet Formato
B2: FORMATO PARA MODIFICACIÓN DE ÓRDENES DE COMPRA
B3: Tienda Virtual del Estado Colombiano
B5: Número de Orden de Compra a modificar: | E5: 14264 | H5: Número de modificación de la Orden de Compra: | K5: 1
B8: Entidad Compradora: | D8: CENTRAL ADMINISTRATIVA Y CONTABLE ARMENIA | L8: NIT: | M8: 800130829-1
B10: Nombre del solicitante: | D10: YOLANDA PUENTES TOVAR | K10: Teléfono de contacto: | M10: 3165332741
B12: Proveedor : | D12: S.O.S SOLUCIONES DE OFICINA &SUMINISTROS S.A.S
B14: Sección 1: Tipo de acción
B16: Tipo | D16: Modificación de la Orden de Compra
B18: Sección 2: Justificación de la modificación o de las acciones a realizar
B20: AL REALIZAR ESTE EVENTO DE APROBACION SOLICITUD 26287 ESTA CENTRAL ADMINISTRATIVA Y CONTABLE REGIONAL ARMENIA TUVO UN AHORRO DE $38,571,916,15, POR TAL MOTIVO SE REALIZA UNA ADICION . A LA ORDEN DE COMPRA 14264 CON EL PROVEEDOR S.O.S SOLUCIONES DE OFICINA & SUMINISTROS S.A.S , ASI MISMO REALIZANDO UNA ADICION AL CDP No. 917 QUEDANDO EN FIRME EL CDP POR LA SUMA DE $125,172,321,65.
B22: Sección 3: Modificación información general
B24: Nombre del campo | D24: ¿Requiere modificación Si/No? | E24: Datos actuales | J24: Nuevos datos
B26: Actualizar supervisor | D26: NO | E26: Nombre del supervisor actual | G26: 0 | J26: Nombre nuevo supervisor
B28: Dirección y/o teléfono Supervisor | D28: NO | E28: Teléfono actual supervisor | G28: 0 | J28: Teléfono nuevo supervisor
B30: Fecha de vencimiento | D30: NO | E30: La fecha vencimiento actual se tomará de la TVEC al momento del cambio | J30: Nueva fecha de vencimiento
B32: Dirección y/o teléfono Entidad | D32: NO | E32: Dirección / teléfono actual Entidad | G32: 0 | J32: Nueva dirección / teléfono Entidad
A36: Sección 4: Modificación de artículos y servicios
A38: Tipo de modificación | B38: Información actual | K38: Nueva información
B39: Número de la línea según O.C. | C39: Nombre del artículo | E39: Cantidad | F39: Unidad de medida | G39: Precio unitario | H39: Total | I39: Información presupuestal | K39: Nombre del artículo | M39: Cantidad | N39: Unidad de medida | O39: Precio unitario | P39: Total | Q39: Información presupuestal
A40: Modificación de artículo o servicio | B40: 1 | C40: Almuadilla Dactilar | E40: 67 | F40: Unidad | G40: 1176 | H40: =ROUND(E40*G40, 2) -> 78792 | I40: 917 | K40: =C40 -> Almuadilla Dactilar | M40: =25+E40 -> 92 | N40: unidad | O40: 1176 | P40: =ROUND(M40*O40, 2) -> 108192 | Q40: 917
A41: Modificación de artículo o servicio | B41: 2 | C41: Almuadilla Dactilar Rercargable | E41: 30 | F41: unidad | G41: 4471 | H41: 134130 | I41: 917 | K41: Almuadilla Dactilar Rercargable | M41: =7+E41 -> 37 | N41: unidad | O41: 4471 | P41: 165427 | Q41: 917
A42: Modificación de artículo o servicio | B42: 3 | C42: Almohadilla para sello recargable | E42: 41 | F42: unidad | G42: 1176 | H42: 48216 | I42: 917 | K42: Almohadilla para sello recargable | M42: 47 | N42: unidad | O42: 1176 | P42: 55272 | Q42: 917
A43: Modificación de artículo o servicio | B43: 4 | C43: Archivador de fuelle en poligropileno | E43: 12 | F43: unidad | G43: 7647 | H43: 91764 | I43: 917 | K43: Archivador de fuelle en poligropileno | M43: 13 | N43: unidad | O43: 7647 | P43: 99411 | Q43: 917
A44: Modificación de artículo o servicio | B44: 5 | C44: Bandas elasticas ref 22x25g | E44: 2 | F44: caja | G44: 235 | H44: 470 | I44: 917 | K44: Bandas elasticas ref 22x25g | M44: 3 | N44: caja | O44: 235 | P44: 705 | Q44: 917
A45: Modificación de artículo o servicio | B45: 6 | C45: Bandas elasticas ref 22 x kilo | E45: 19 | F45: bolsa | G45: 6471 | H45: 122949 | I45: 917 | K45: Bandas elasticas ref 22 x kilo | M45: 23 | N45: bolsa | O45: 6471 | P45: 148833 | Q45: 917
A46: Modificación de artículo o servicio | B46: 7 | C46: Banderitas -mini-banderitas -señales autodhesivas | E46: 260 | F46: Unidad | G46: 941 | H46: 244660 | I46: 917 | K46: Banderitas -mini-banderitas -señales autodhesivas | M46: =81+E46 -> 341 | N46: unidad | O46: 941 | P46: 320881 | Q46: 917
A47: Modificación de artículo o servicio | B47: 8 | C47: Bisturi 18mm metalicos | E47: 78 | F47: unidad | G47: 1529 | H47: 119262 | I47: 917 | K47: Bisturi 18mm metalicos | M47: =35+E47 -> 113 | N47: unidad | O47: 1529 | P47: 172777 | Q47: 917
A48: Modificación de artículo o servicio | B48: 9 | C48: bisturi 18mm plasticos | E48: 108 | F48: unidad | G48: 388 | H48: 41904 | I48: 917 | K48: bisturi 18mm plasticos | M48: =8+E48 -> 116 | N48: unidad | O48: 388 | P48: 45008 | Q48: 917
A49: Modificación de artículo o servicio | B49: 10 | C49: Bisturi 9mmm | E49: 30 | F49: unidad | G49: 272 | H49: 8160 | I49: 917 | K49: Bisturi 9mmm | M49: 57 | N49: unidad | O49: 272 | P49: 15504 | Q49: 917
A50: Modificación de artículo o servicio | B50: 11 | C50: Block amarillo cuadriculado | E50: 2 | F50: unidad | G50: 1882 | H50: 3764 | I50: 917 | K50: Block amarillo cuadriculado | M50: 3 | N50: unidad | O50: 1882 | P50: 5646 | Q50: 917
A51: Modificación de artículo o servicio | B51: 12 | C51: Block amarillo rayado | E51: 2 | F51: unidad | G51: 1882 | H51: 3764 | I51: 917 | K51: Block amarillo rayado | M51: 3 | N51: unidad | O51: 1882 | P51: 5646 | Q51: 917
A52: Modificación de artículo o servicio | B52: 13 | C52: Block balnco cuadriculado | E52: 88 | F52: unidad | G52: 1047 | H52: 92136 | I52: 917 | K52: Block balnco cuadriculado | M52: 89 | N52: unidad | O52: 1047 | P52: 93183 | Q52: 917
A53: Modificación de artículo o servicio | B53: 15 | C53: Boligrafo azul | E53: 82 | F53: unidad | G53: 206 | H53: 16892 | I53: 917 | K53: Boligrafo azul | M53: =32+E53 -> 114 | N53: unidad | O53: 206 | P53: 23484 | Q53: 917
A54: Modificación de artículo o servicio | B54: 16 | C54: boligrago negro | E54: 1402 | F54: unidad | G54: 206 | H54: 288812 | I54: 917 | K54: boligrago negro | M54: =538+E54 -> 1940 | N54: unidad | O54: 206 | P54: 399640 | Q54: 917
A55: Modificación de artículo o servicio | B55: 17 | C55: boligrafo rojo | E55: 243 | F55: unidad | G55: 206 | H55: 50058 | I55: 917 | K55: boligrafo rojo | M55: =184+E55 -> 427 | N55: unidad | O55: 206 | P55: 87962 | Q55: 917
A56: Modificación de artículo o servicio | B56: 18 | C56: borrador de miga de pan | E56: 23 | F56: unidad | G56: 315 | H56: 7245 | I56: 917 | K56: borrador de miga de pan | M56: =2+E56 -> 25 | N56: unidad | O56: 315 | P56: 7875 | Q56: 917
A57: Modificación de artículo o servicio | B57: 19 | C57: borrador de nata | E57: 380 | F57: unidad | G57: 194 | H57: 73720 | I57: 917 | K57: borrador de nata | M57: =78+E57 -> 458 | N57: unidad | O57: 194 | P57: 88852 | Q57: 917
A58: Modificación de artículo o servicio | B58: 20 | C58: borrador para tablero | E58: 38 | F58: unidad | G58: 588 | H58: 22344 | I58: 917 | K58: borrador para tablero | M58: =30+E58 -> 68 | N58: unidad | O58: 588 | P58: 39984 | Q58: 917
A59: Modificación de artículo o servicio | B59: 21 | C59: borrador para tinta con escobilla | E59: 21 | F59: unidad | G59: 2864 | H59: 60144 | I59: 917 | K59: borrador para tinta con escobilla | M59: =7+E59 -> 28 | N59: unidad | O59: 2864 | P59: 80192 | Q59: 917
A60: Modificación de artículo o servicio | B60: 27 | C60: caja para archivo cental referencia x -200 | E60: 3526 | F60: unidad | G60: 1794 | H60: 6325644 | I60: 917 | K60: caja para archivo cental referencia x -200 | M60: =547+E60 -> 4073 | N60: unidad | O60: 1794 | P60: 7306962 | Q60: 917
A61: Modificación de artículo o servicio | B61: 28 | C61: caja para archivo historico regencia x -100 | E61: 685 | F61: unidad | G61: 1335 | H61: 914475 | I61: 917 | K61: caja para archivo historico regencia x -100 | M61: =200+E61 -> 885 | N61: unidad | O61: 1335 | P61: 1181475 | Q61: 917
A62: Modificación de artículo o servicio | B62: 30 | C62: calculadora de bolsillo | E62: 2 | F62: unidad | G62: 2706 | H62: 5412 | I62: 917 | K62: calculadora de bolsillo | M62: =17+E62 -> 19 | N62: unidad | O62: 2706 | P62: 51414 | Q62: 917
A63: Modificación de artículo o servicio | B63: 32 | C63: calculadora escritorio 16 digitos | E63: 26 | F63: unidad | G63: 34412 | H63: 894712 | I63: 917 | K63: calculadora escritorio 16 digitos | M63: =5+E63 -> 31 | N63: unidad | O63: 34412 | P63: 1066772 | Q63: 917
A64: Modificación de artículo o servicio | B64: 33 | C64: carpeta presentacion carta | E64: 12 | F64: paquete x veinte | G64: 2612 | H64: 31344 | I64: 917 | K64: carpeta presentacion carta | M64: =30+E64 -> 42 | N64: paquete x veinte | O64: 2612 | P64: 109704 | Q64: 917
A65: Modificación de artículo o servicio | B65: 34 | C65: carpeta presentacion oficio plastificado mate | E65: 10 | F65: paquete x veinte | G65: 3106 | H65: 31060 | I65: 917 | K65: carpeta presentacion oficio plastificado mate | M65: =25+E65 -> 35 | N65: paquete x veinte | O65: 3106 | P65: 108710 | Q65: 917
A66: Modificación de artículo o servicio | B66: 35 | C66: carpeta tipo 4 aletas en cartulina desacidificada | E66: 659 | F66: unidad | G66: 800 | H66: 527200 | I66: 917 | K66: carpeta tipo 4 aletas en cartulina desacidificada | M66: 759 | N66: unidad | O66: 800 | P66: 607200 | Q66: 917
A67: Modificación de artículo o servicio | B67: 36 | C67: carpeta tipo 4 aletas en cartulina blanca tipo propalcote | E67: 14430 | F67: unidad | G67: 715 | H67: 10317450 | I67: 917 | K67: carpeta tipo 4 aletas en cartulina blanca tipo propalcote | M67: 16128 | N67: unidad | O67: 715 | P67: 11531520 | Q67: 917
A68: Modificación de artículo o servicio | B68: 37 | C68: carpeta tipo cataloga 0,5 pulg | E68: 20 | F68: unidad | G68: 3342 | H68: 66840 | I68: 917 | K68: carpeta tipo cataloga 0,5 pulg | M68: 25 | N68: unidad | O68: 3342 | P68: 83550 | Q68: 917
A69: Modificación de artículo o servicio | B69: 38 | C69: carpeta tipo catalogo 1 pulg | E69: 20 | F69: unidad | G69: 3688 | H69: 73760 | I69: 917 | K69: carpeta tipo catalogo 1 pulg | M69: 25 | N69: unidad | O69: 3688 | P69: 92200 | Q69: 917
A70: Modificación de artículo o servicio | B70: 39 | C70: carpteta tipo catalogo 2 pulg | E70: 20 | F70: unidad | G70: 5412 | H70: 108240 | I70: 917 | K70: carpteta tipo catalogo 2 pulg | M70: 21 | N70: unidad | O70: 5412 | P70: 113652 | Q70: 917
A71: Modificación de artículo o servicio | B71: 40 | C71: carpeta tipo catalogo 3 pulg | E71: 20 | F71: unidad | G71: 6765 | H71: 135300 | I71: 917 | K71: carpeta tipo catalogo 3 pulg | M71: 32 | N71: unidad | O71: 6765 | P71: 216480 | Q71: 917
A72: Modificación de artículo o servicio | B72: 41 | C72: carpeta tipo catalogo 4 pulg | E72: 10 | F72: unidad | G72: 7706 | H72: =ROUND(E72*G72, 2) -> 77060 | I72: 917 | K72: =C72 -> carpeta tipo catalogo 4 pulg | M72: 11 | N72: unidad | O72: 7706 | P72: =ROUND(M72*O72, 2) -> 84766 | Q72: 917
A73: Modificación de artículo o servicio | B73: 42 | C73: carpetas plegables por la mitad en cartulina desacidificada | E73: 10 | F73: paquete x cincuenta | G73: 52941 | H73: 529410 | I73: 917 | K73: carpetas plegables por la mitad en cartulina desacidificada | M73: 11 | N73: paquete x cincuenta | O73: 52941 | P73: 582351 | Q73: 917
A74: Modificación de artículo o servicio | B74: 43 | C74: carpeta plegadas por la mitad en propalcote | E74: 18 | F74: paquete x cincuenta | G74: 12353 | H74: 222354 | I74: 917 | K74: carpeta plegadas por la mitad en propalcote | M74: 20 | N74: paquete x cincuenta | O74: 12353 | P74: 247060 | Q74: 917
A75: Modificación de artículo o servicio | B75: 44 | C75: carpeta carta blanca | E75: 23 | F75: paquete x cien | G75: 4000 | H75: 92000 | I75: 917 | K75: carpeta carta blanca | M75: 29 | N75: paquete x cien | O75: 4000 | P75: 116000 | Q75: 917
A76: Modificación de artículo o servicio | B76: 45 | C76: cartulina carta surtido | E76: 31 | F76: paquete x cien | G76: 4000 | H76: 124000 | I76: 917 | K76: cartulina carta surtido | M76: 40 | N76: paquete x cien | O76: 4000 | P76: 160000 | Q76: 917
A77: Modificación de artículo o servicio | B77: 46 | C77: cartulina oficio blanco | E77: 97 | F77: paquete x cien | G77: 4341 | H77: 421077 | I77: 917 | K77: cartulina oficio blanco | M77: 107 | N77: paquete x cien | O77: 4341 | P77: 464487 | Q77: 917
A78: Modificación de artículo o servicio | B78: 47 | C78: cartulina oficio surtido | E78: 41 | F78: paquete x cien | G78: 4341 | H78: 177981 | I78: 917 | K78: cartulina oficio surtido | M78: 51 | N78: paquete x cien | O78: 4341 | P78: 221391 | Q78: 917
A79: Modificación de artículo o servicio | B79: 48 | C79: cartulina pliego blanco | E79: 20 | F79: unidad | G79: 388 | H79: 7760 | I79: 917 | K79: cartulina pliego blanco | M79: 30 | N79: unidad | O79: 388 | P79: 11640 | Q79: 917
A80: Modificación de artículo o servicio | B80: 49 | C80: cartulina pliego surtidos | E80: 69 | F80: unidad | G80: 388 | H80: 26772 | I80: 917 | K80: cartulina pliego surtidos | M80: 77 | N80: unidad | O80: 388 | P80: 29876 | Q80: 917
A81: Modificación de artículo o servicio | B81: 50 | C81: cd-r | E81: 9 | F81: paquete x cient | G81: 32941 | H81: 296469 | I81: 917 | K81: cd-r | M81: 18 | N81: paquete x cien | O81: 32941 | P81: 592938 | Q81: 917
A82: Modificación de artículo o servicio | B82: 51 | C82: cd -rw | E82: 33 | F82: paquete x veinticinco | G82: 31553 | H82: 1041249 | I82: 917 | K82: cd -rw | M82: 51 | N82: paquete x veinticinco | O82: 31553 | P82: 1609203 | Q82: 917
A83: Modificación de artículo o servicio | B83: 52 | C83: cera para contar -cera dactilar cuenta facil | E83: 64 | F83: unidad | G83: 794 | H83: 50816 | I83: 917 | K83: cera para contar -cera dactilar cuenta facil | M83: 82 | N83: unidad | O83: 794 | P83: 65108 | Q83: 917
A84: Modificación de artículo o servicio | B84: 53 | C84: chinches x 50 | E84: 96 | F84: caja x cincuenta | G84: 539 | H84: 51744 | I84: 917 | K84: chinches x 50 | M84: 168 | N84: caja x cincuenta | O84: 539 | P84: 90552 | Q84: 917
A85: Modificación de artículo o servicio | B85: 54 | C85: chinchon traslucido x 100 | E85: 14 | F85: caja x cien | G85: 941 | H85: 13174 | I85: 917 | K85: chinchon traslucido x 100 | M85: 28 | N85: caja x cien | O85: 941 | P85: 26348 | Q85: 917
A86: Modificación de artículo o servicio | B86: 55 | C86: cinta adhesiva de empaque en rollo | E86: 60 | F86: rollo | G86: 2155 | H86: 129300 | I86: 917 | K86: cinta adhesiva de empaque en rollo | M86: 88 | N86: rollo | O86: 2155 | P86: 189640 | Q86: 917
A87: Modificación de artículo o servicio | B87: 56 | C87: cinta adhesiva magica | E87: 2 | F87: rollo | G87: 6465 | H87: 12930 | I87: 917 | K87: cinta adhesiva magica | M87: 17 | N87: rollo | O87: 6465 | P87: 109905 | Q87: 917
A88: Modificación de artículo o servicio | B88: 57 | C88: cinta adhesiva para enmascarar 12mm | E88: 55 | F88: rollo | G88: 1138 | H88: 62590 | I88: 917 | K88: cinta adhesiva para enmascarar 12mm | M88: 84 | N88: rollo | O88: 1138 | P88: 95592 | Q88: 917
A89: Modificación de artículo o servicio | B89: 58 | C89: cinta adhesiva para enmascarar 48mm | E89: 41 | F89: rollo | G89: 4481 | H89: 183721 | I89: 917 | K89: cinta adhesiva para enmascarar 48mm | M89: 68 | N89: rollo | O89: 4481 | P89: 304708 | Q89: 917
A90: Modificación de artículo o servicio | B90: 59 | C90: cina adhesica transparente | E90: 62 | F90: rollo | G90: 442 | H90: 27404 | I90: 917 | K90: cina adhesica transparente | M90: 128 | N90: rollo | O90: 442 | P90: 56576 | Q90: 917
A91: Modificación de artículo o servicio | B91: 60 | C91: cinta falla | E91: 16 | F91: rollo | G91: 1176 | H91: 18816 | I91: 917 | K91: cinta falla | M91: 40 | N91: rollo | O91: 1176 | P91: 47040 | Q91: 917
A92: Modificación de artículo o servicio | B92: 61 | C92: clip estandar pequeño x 100 | E92: 188 | F92: caja x cien | G92: 293 | H92: 55084 | I92: 917 | K92: clip estandar pequeño x 100 | M92: 259 | N92: rollo | O92: 293 | P92: 75887 | Q92: 917
A93: Modificación de artículo o servicio | B93: 62 | C93: clip estandar paqueño plastificado x 100 | E93: 191 | F93: caja x cien | G93: 835 | H93: 159485 | I93: 917 | K93: clip estandar paqueño plastificado x 100 | M93: 289 | N93: caja x cien | O93: 835 | P93: 241315 | Q93: 917
A94: Modificación de artículo o servicio | B94: 63 | C94: clip jumbo x 100 | E94: 47 | F94: caja x cien | G94: 1085 | H94: 50995 | I94: 917 | K94: clip jumbo x 100 | M94: 101 | N94: caja x cien | O94: 1085 | P94: 109585 | Q94: 917
A95: Modificación de artículo o servicio | B95: 64 | C95: clips mariposa gigante x 12 | E95: 98 | F95: caja x doce | G95: 1129 | H95: 110642 | I95: 917 | K95: clips mariposa gigante x 12 | M95: 207 | N95: caja x doce | O95: 1129 | P95: 233703 | Q95: 917
A96: Modificación de artículo o servicio | B96: 65 | C96: colores | E96: 16 | F96: caja x doce | G96: 2112 | H96: 33792 | I96: 917 | K96: colores | M96: 71 | N96: caja x doce | O96: 2112 | P96: 149952 | Q96: 917
A97: Modificación de artículo o servicio | B97: 66 | C97: corrector liquido en frasco | E97: 20 | F97: unidad | G97: 1000 | H97: 20000 | I97: 917 | K97: corrector liquido en frasco | M97: 25 | N97: unidad | O97: 1000 | P97: 25000 | Q97: 917
A98: Modificación de artículo o servicio | B98: 67 | C98: corrector liquido en lapiz | E98: 126 | F98: unidad | G98: 974 | H98: 122724 | I98: 917 | K98: corrector liquido en lapiz | M98: 195 | N98: unidad | O98: 974 | P98: 189930 | Q98: 917
A99: Modificación de artículo o servicio | B99: 68 | C99: cosedora de oficina 20 hojas | E99: 33 | F99: unidad | G99: 5662 | H99: 186846 | I99: 917 | K99: cosedora de oficina 20 hojas | M99: 46 | N99: unidad | O99: 5662 | P99: 260452 | Q99: 917
A100: Modificación de artículo o servicio | B100: 69 | C100: cosedora de oficina 30 hojas | E100: 59 | F100: undiad | G100: 11934 | H100: 704106 | I100: 917 | K100: cosedora de oficina 30 hojas | M100: 91 | N100: unidad | O100: 11934 | P100: 1085994 | Q100: 917
A101: Modificación de artículo o servicio | B101: 71 | C101: dvd-r paquete x 50 | E101: 11 | F101: paquete x cincuenta | G101: 18824 | H101: 207064 | I101: 917 | K101: dvd-r paquete x 50 | M101: 18 | N101: paquete x cincuenta | O101: 18824 | P101: 338832 | Q101: 917
A102: Modificación de artículo o servicio | B102: 72 | C102: fechador de entintado manual | E102: 26 | F102: unidad | G102: 2000 | H102: 52000 | I102: 917 | K102: fechador de entintado manual | M102: 46 | N102: unidad | O102: 2000 | P102: 92000 | Q102: 917
A103: Modificación de artículo o servicio | B103: 73 | C103: folder celugia con porta guia plastica en posicion horizontal paquete x 50 que cumplan con ntc 4436:1999y ntc 5397 paquete x 50 | E103: 10 | F103: paquete x cincuenta | G103: 6588 | H103: 65880 | I103: 917 | K103: folder celugia con porta guia plastica en posicion horizontal paquete x 50 que cumplan con ntc 4436:1999y ntc 5397 paquete x 50 | M103: 21 | N103: paquete x cincuenta | O103: 6588 | P103: 138348 | Q103: 917
A104: Modificación de artículo o servicio | B104: 74 | C104: foldder celuguia con pora guia plastica en posicion vertical, paquete x 50 que cumpla con ntc 4436-1999-y ntc 5397. | E104: 10 | F104: paquete x cincuenta | G104: 6588 | H104: =ROUND(E104*G104, 2) -> 65880 | I104: 917 | K104: =C104 -> foldder celuguia con pora guia plastica en posicion vertical, paquete x 50 que cumpla con ntc 4436-1999-y ntc 5397. | M104: 11 | N104: paquete x cincuenta | O104: 6588 | P104: =ROUND(M104*O104, 2) -> 72468 | Q104: 917
A105: Modificación de artículo o servicio | B105: 77 | C105: forma continua oficio 3 partes caja x 1000 | E105: 10 | F105: caja x mil | G105: 86413 | H105: 864130 | I105: 917 | K105: forma continua oficio 3 partes caja x 1000 | M105: 11 | N105: caja x mil | O105: 86413 | P105: 950543 | Q105: 917
A106: Modificación de artículo o servicio | B106: 78 | C106: funda protectora de plastico tamaño carta x 100 unidades | E106: 4 | F106: paquete x cien | G106: 6118 | H106: 24472 | I106: 917 | K106: funda protectora de plastico tamaño carta x 100 unidades | M106: 5 | N106: paquete x cien | O106: 6118 | P106: 30590 | Q106: 917
A107: Modificación de artículo o servicio | B107: 79 | C107: funda protectora de palstico tamaño oficio x 100 unidades | E107: 4 | F107: paquete x cien | G107: 7529 | H107: 30116 | I107: 917 | K107: funda protectora de palstico tamaño oficio x 100 unidades | M107: 5 | N107: paquete x cien | O107: 7529 | P107: 37645 | Q107: 917
A108: Modificación de artículo o servicio | B108: 80 | C108: gancho legajador plastico x 20 | E108: 138 | F108: paquete x viente | G108: 1471 | H108: 202998 | I108: 917 | K108: gancho legajador plastico x 20 | M108: 158 | N108: paquete x veinte | O108: 1471 | P108: 232418 | Q108: 917
A109: Modificación de artículo o servicio | B109: 81 | C109: gancho No. 23/14 caja x1000 | E109: 40 | F109: caja x mil | G109: 2861 | H109: 114440 | I109: 917 | K109: gancho No. 23/14 caja x1000 | M109: 50 | N109: caja x mil | O109: 2861 | P109: 143050 | Q109: 917
A110: Modificación de artículo o servicio | B110: 82 | C110: gancho No. 23/10 caja x1000 | E110: 20 | F110: caja x mil | G110: 2409 | H110: 48180 | I110: 917 | K110: gancho No. 23/10 caja x1000 | M110: 30 | N110: caja x mil | O110: 2409 | P110: 72270 | Q110: 917
A111: Modificación de artículo o servicio | B111: 83 | C111: gancho 23/12 caja x 1000 | E111: 37 | F111: caja x mil | G111: 2560 | H111: 94720 | I111: 917 | K111: gancho 23/12 caja x 1000 | M111: 42 | N111: caja x mil | O111: 2560 | P111: 107520 | Q111: 917
A112: Modificación de artículo o servicio | B112: 84 | C112: gancho No. 23/8 caja x 1000 | E112: 30 | F112: caja x mil | G112: 2259 | H112: 67770 | I112: 917 | K112: gancho No. 23/8 caja x 1000 | M112: 35 | N112: caja x mil | O112: 2259 | P112: 79065 | Q112: 917
A113: Modificación de artículo o servicio | B113: 85 | C113: grapa No. 26/6 caja x 5000 | E113: 90 | F113: caja x cincomil | G113: 1362 | H113: 122580 | I113: 917 | K113: grapa No. 26/6 caja x 5000 | M113: 110 | N113: caja x cincomil | O113: 1362 | P113: 149820 | Q113: 917
A114: Modificación de artículo o servicio | B114: 86 | C114: guia en cartulina carta paquete x 5 | E114: 25 | F114: paquete x cinco | G114: 424 | H114: 10600 | I114: 917 | K114: guia en cartulina carta paquete x 5 | M114: 35 | N114: paquete x cinco | O114: 424 | P114: 14840 | Q114: 917
A115: Modificación de artículo o servicio | B115: 87 | C115: guia en cartulina oficon paquete x 5 | E115: 45 | F115: paquete x cinco | G115: 482 | H115: 21690 | I115: 917 | K115: guia en cartulina oficon paquete x 5 | M115: 55 | N115: paquete x cinco | O115: 482 | P115: 26510 | Q115: 917
A116: Modificación de artículo o servicio | B116: 89 | C116: lapiz de chequeo mina roja | E116: 120 | F116: unidad | G116: 288 | H116: 34560 | I116: 917 | K116: lapiz de chequeo mina roja | M116: 160 | N116: unidad | O116: 288 | P116: 46080 | Q116: 917
A117: Modificación de artículo o servicio | B117: 90 | C117: lapiz de escritura mina negra | E117: 93 | F117: caja x doce | G117: 2259 | H117: 210087 | I117: 917 | K117: lapiz de escritura mina negra | M117: 183 | N117: unidad x doce | O117: 2259 | P117: 413397 | Q117: 917
A118: Modificación de artículo o servicio | B118: 91 | C118: legajador az | E118: 20 | F118: unidad | G118: 2529 | H118: 50580 | I118: 917 | K118: legajador az | M118: 31 | N118: unidad | O118: 2529 | P118: 78399 | Q118: 917
A119: Modificación de artículo o servicio | B119: 92 | C119: libretatelemensaje | E119: 2 | F119: unidad | G119: 10276 | H119: 20552 | I119: 917 | K119: libretatelemensaje | M119: 34 | N119: unidad | O119: 10276 | P119: 349384 | Q119: 917
A120: Modificación de artículo o servicio | B120: 93 | C120: libro de actas 100 folios | E120: 340 | F120: unidad | G120: 3522 | H120: 1197480 | I120: 917 | K120: libro de actas 100 folios | M120: 522 | N120: unidad | O120: 3522 | P120: 1838484 | Q120: 917
A121: Modificación de artículo o servicio | B121: 94 | C121: libro de actas 200 folios | E121: 231 | F121: unidad | G121: 6147 | H121: 1419957 | I121: 917 | K121: =C121 -> libro de actas 200 folios | M121: 311 | N121: unidad | O121: 6147 | P121: 1911717 | Q121: 917
A122: Modificación de artículo o servicio | B122: 95 | C122: libro de actas 300 folios | E122: 77 | F122: unidad | G122: 9573 | H122: 737121 | I122: 917 | K122: libro de actas 300 folios | M122: 81 | N122: unidad | O122: 9573 | P122: 775413 | Q122: 917
A123: Modificación de artículo o servicio | B123: 96 | C123: libro de acatas 400 folios | E123: 57 | F123: undiad | G123: 11454 | H123: 652878 | I123: 917 | K123: libro de acatas 400 folios | M123: 77 | N123: unidad | O123: 11454 | P123: 881958 | Q123: 917
A124: Modificación de artículo o servicio | B124: 97 | C124: libro de actas 600 folios | E124: 42 | F124: unidad | G124: 15336 | H124: 644112 | I124: 917 | K124: libro de actas 600 folios | M124: 46 | N124: unidad | O124: 15336 | P124: 705456 | Q124: 917
A125: Modificación de artículo o servicio | B125: 98 | C125: manecilla doble xlip 1 pulg caja x 12 | E125: 7 | F125: caja x doce | G125: 1414 | H125: 9898 | I125: 917 | K125: manecilla doble xlip 1 pulg caja x 12 | M125: 14 | N125: unidad | O125: 1414 | P125: 19796 | Q125: 917
A126: Modificación de artículo o servicio | B126: 99 | C126: marcador borrable desechable | E126: 451 | F126: unidad | G126: 706 | H126: 318406 | I126: 917 | K126: marcador borrable desechable | M126: 642 | N126: unidad | O126: 706 | P126: 453252 | Q126: 917
A127: Modificación de artículo o servicio | B127: 100 | C127: marcador borrable recargable | E127: 40 | F127: unidad | G127: 1154 | H127: 46160 | I127: 917 | K127: marcador borrable recargable | M127: 68 | N127: unidad | O127: 1154 | P127: 78472 | Q127: 917
A128: Modificación de artículo o servicio | B128: 101 | C128: marcador permanente | E128: 323 | F128: unidad | G128: 424 | H128: 136952 | I128: 917 | K128: marcador permanente | M128: 423 | N128: unidad | O128: 424 | P128: 179352 | Q128: 917
A129: Modificación de artículo o servicio | B129: 102 | C129: marcador permanente punto delgada | E129: 135 | F129: unidad | G129: 741 | H129: 100035 | I129: 917 | K129: marcador permanente punto delgada | M129: 210 | N129: unidad | O129: 741 | P129: 155610 | Q129: 917
A130: Modificación de artículo o servicio | B130: 103 | C130: memoria usb | E130: 46 | F130: unidad | G130: 9071 | H130: 417266 | I130: 917 | K130: memoria usb | M130: 96 | N130: unidad | O130: 9071 | P130: 870816 | Q130: 917
A131: Modificación de artículo o servicio | B131: 104 | C131: mina para portaminas 0,5 mm | E131: 7 | F131: unidad | G131: 294 | H131: 2058 | I131: 917 | K131: mina para portaminas 0,5 mm | M131: 93 | N131: unidad | O131: 294 | P131: 27342 | Q131: 917
A132: Modificación de artículo o servicio | B132: 105 | C132: mina para portaminas 0,7 mm | E132: 56 | F132: unidad | G132: 294 | H132: 16464 | I132: 917 | K132: mina para portaminas 0,7 mm | M132: 66 | N132: unidad | O132: 294 | P132: 19404 | Q132: 917
A133: Modificación de artículo o servicio | B133: 106 | C133: notas autoadhesivas estandar /taco/bloque /cubo de minimo 100 hojas | E133: 217 | F133: unidad | G133: 1280 | H133: 277760 | I133: 917 | K133: notas autoadhesivas estandar /taco/bloque /cubo de minimo 100 hojas | M133: 290 | N133: unidad | O133: 1280 | P133: 371200 | Q133: 917
A134: Modificación de artículo o servicio | B134: 107 | C134: notas autoadhesivas pequeñas /taco/bloque /cubo de minimo 100 hojas | E134: 226 | F134: unidad | G134: 548 | H134: 123848 | I134: 917 | K134: notas autoadhesivas pequeñas /taco/bloque /cubo de minimo 100 hojas | M134: 262 | N134: unidad | O134: 548 | P134: 143576 | Q134: 917
A135: Modificación de artículo o servicio | B135: 108 | C135: numerador entintdo manual 6 digitos | E135: 24 | F135: unidad | G135: 2759 | H135: 66216 | I135: 917 | K135: numerador entintdo manual 6 digitos | M135: 27 | N135: unidad | O135: 2759 | P135: 74493 | Q135: 917
A136: Modificación de artículo o servicio | B136: 109 | C136: numerador entintdo manual 8 digitos | E136: 20 | F136: undiad | G136: 2253 | H136: =ROUND(E136*G136, 2) -> 45060 | I136: 917 | K136: numerador entintdo manual 8 digitos | M136: 30 | N136: unidad | O136: 2253 | P136: =ROUND(M136*O136, 2) -> 67590 | Q136: 917
A137: Modificación de artículo o servicio | B137: 110 | C137: padmouse | E137: 69 | F137: unidad | G137: 4118 | H137: 284142 | I137: 917 | K137: padmouse | M137: 93 | N137: unidad | O137: 4118 | P137: 382974 | Q137: 917
A138: Modificación de artículo o servicio | B138: 113 | C138: papel bond 75g carta caja x 10 resma | E138: 162 | F138: caja x diez | G138: 80000 | H138: 12960000 | I138: 917 | K138: papel bond 75g carta caja x 10 resma | M138: 291 | N138: caja x diez | O138: 80000 | P138: 23280000 | Q138: 917
A139: Modificación de artículo o servicio | B139: 114 | C139: papel bon 75 g oficio caja x 10 resmas | E139: 134 | F139: caja x diez | G139: 102353 | H139: 13715302 | I139: 917 | K139: papel bon 75 g oficio caja x 10 resmas | M139: 237 | N139: caja x diez | O139: 102353 | P139: 24257661 | Q139: 917
A140: Modificación de artículo o servicio | B140: 115 | C140: papel carbon para maquina carta x 100 | E140: 1 | F140: unidad | G140: 6118 | H140: 6118 | I140: 917 | K140: papel carbon para maquina carta x 100 | M140: 2 | N140: unidad | O140: 6118 | P140: 12236 | Q140: 917
A141: Modificación de artículo o servicio | B141: 116 | C141: papel contac colores | E141: 15 | F141: rollo | G141: 28635 | H141: 429525 | I141: 917 | K141: papel contac colores | M141: 26 | N141: rollo | O141: 28635 | P141: 744510 | Q141: 917
A142: Modificación de artículo o servicio | B142: 117 | C142: papel contac transparente | E142: 30 | F142: rollo | G142: 26082 | H142: 782460 | I142: 917 | K142: papel contac transparente | M142: 62 | N142: rollo | O142: 26082 | P142: 1617084 | Q142: 917
A143: Modificación de artículo o servicio | B143: 119 | C143: papel kraft 90g | E143: 3 | F143: rollo | G143: 47059 | H143: 141177 | I143: 917 | K143: papel kraft 90g | M143: 7 | N143: rolllo | O143: 47059 | P143: 329413 | Q143: 917
A144: Modificación de artículo o servicio | B144: 122 | C144: papel periodico pliego | E144: 24 | F144: paquete x diez | G144: 1176 | H144: 28224 | I144: 917 | K144: papel periodico pliego | M144: 54 | N144: paquete x diez | O144: 1176 | P144: 63504 | Q144: 917
A145: Modificación de artículo o servicio | B145: 124 | C145: pegante en barra | E145: 264 | F145: unidad | G145: 1352 | H145: 356928 | I145: 917 | K145: pegante en barra | M145: 313 | N145: unidad | O145: 1352 | P145: 423176 | Q145: 917
A146: Modificación de artículo o servicio | B146: 125 | C146: pagane instantaneo | E146: 25 | F146: unidad | G146: 1592 | H146: 39800 | I146: 917 | K146: pagane instantaneo | M146: 41 | N146: unidad | O146: 1592 | P146: 65272 | Q146: 917
A147: Modificación de artículo o servicio | B147: 126 | C147: pegante liquido 225g | E147: 56 | F147: unidad | G147: 1165 | H147: 65240 | I147: 917 | K147: pegante liquido 225g | M147: 92 | N147: unidad | O147: 1165 | P147: 107180 | Q147: 917
A148: Modificación de artículo o servicio | B148: 127 | C148: pegante liquido 4000g | E148: 29 | F148: unidad | G148: 14896 | H148: 431984 | I148: 917 | K148: pegante liquido 4000g | M148: 30 | N148: unidad | O148: 14896 | P148: 446880 | Q148: 917
A149: Modificación de artículo o servicio | B149: 130 | C149: perforadora para oficna de 2 huecos | E149: 47 | F149: unidad | G149: 5795 | H149: 272365 | I149: 917 | K149: perforadora para oficna de 2 huecos | M149: 55 | N149: unidad | O149: 5795 | P149: 318725 | Q149: 917
A150: Modificación de artículo o servicio | B150: 131 | C150: perforadora 3 huecos | E150: 1 | F150: unidad | G150: 15409 | H150: 15409 | I150: 917 | K150: perforadora 3 huecos | M150: 2 | N150: unidad | O150: 15409 | P150: 30818 | Q150: 917
A151: Modificación de artículo o servicio | B151: 140 | C151: plastifolder carta con gancho legador | E151: 10 | F151: unidad | G151: 1118 | H151: 11180 | I151: 917 | K151: plastifolder carta con gancho legador | M151: 12 | N151: unidad | O151: 1118 | P151: 13416 | Q151: 917
A152: Modificación de artículo o servicio | B152: 141 | C152: plastifolder oficios con ganchos legajador | E152: 10 | F152: unidad | G152: 1176 | H152: 11760 | I152: 917 | K152: plastifolder oficios con ganchos legajador | M152: 12 | N152: unidad | O152: 1176 | P152: 14112 | Q152: 917
A153: Modificación de artículo o servicio | B153: 142 | C153: pliego foamy | E153: 60 | F153: unidad | G153: 2953 | H153: 177180 | I153: 917 | K153: pliego foamy | M153: 63 | N153: unidad | O153: 2953 | P153: 186039 | Q153: 917
A154: Modificación de artículo o servicio | B154: 143 | C154: plimones caja x 12 | E154: 22 | F154: caja x doce | G154: 3282 | H154: 72204 | I154: 917 | K154: plimones caja x 12 | M154: 28 | N154: caja x doce | O154: 3282 | P154: 91896 | Q154: 917
A155: Modificación de artículo o servicio | B155: 144 | C155: portaminas 0,5mm | E155: 11 | F155: unidad | G155: 460 | H155: 5060 | I155: 917 | K155: portaminas 0,5mm | M155: 26 | N155: unidad | O155: =+G155 -> 460 | P155: 11960 | Q155: 917
A156: Modificación de artículo o servicio | B156: 145 | C156: portaminas 0,7mm | E156: 36 | F156: unidad | G156: 460 | H156: =ROUND(E156*G156, 2) -> 16560 | I156: 917 | K156: =C156 -> portaminas 0,7mm | M156: 48 | N156: unidad | O156: 460 | P156: =ROUND(M156*O156, 2) -> 22080 | Q156: 917
A157: Modificación de artículo o servicio | B157: 146 | C157: regla plastica | E157: 47 | F157: unidad | G157: 294 | H157: 13818 | I157: 917 | K157: regla plastica | M157: 51 | N157: unidad | O157: 294 | P157: 14994 | Q157: 917
A158: Modificación de artículo o servicio | B158: 147 | C158: regla metalica grande | E158: 4 | F158: unidad | G158: 1294 | H158: 5176 | I158: 917 | K158: regla metalica grande | M158: 36 | N158: unidad | O158: 1294 | P158: 46584 | Q158: 917
A159: Modificación de artículo o servicio | B159: 148 | C159: regla metalica | E159: 115 | F159: unidad | G159: 753 | H159: 86595 | I159: 917 | K159: regla metalica | M159: 155 | N159: unidad | O159: 753 | P159: 116715 | Q159: 917
A160: Modificación de artículo o servicio | B160: 149 | C160: repuesto bisturi 18mmpaquete x10 | E160: 80 | F160: paquete x diez | G160: 765 | H160: 61200 | I160: 917 | K160: repuesto bisturi 18mmpaquete x10 | M160: 97 | N160: paquete x diez | O160: 765 | P160: 74205 | Q160: 917
A161: Modificación de artículo o servicio | B161: 150 | C161: repuesto bisturi 9mmpaquete x10 | E161: 10 | F161: paquete x diez | G161: 508 | H161: 5080 | I161: 917 | K161: repuesto bisturi 9mmpaquete x10 | M161: 20 | N161: paquete x diez | O161: 508 | P161: 10160 | Q161: 917
A162: Modificación de artículo o servicio | B162: 151 | C162: resaltador desechable | E162: 405 | F162: unidad | G162: 414 | H162: 167670 | I162: 917 | K162: resaltador desechable | M162: 509 | N162: unidad | O162: 414 | P162: 210726 | Q162: 917
A163: Modificación de artículo o servicio | B163: 152 | C163: sacagancho para grapa | E163: 85 | F163: unidad | G163: 918 | H163: 78030 | I163: 917 | K163: sacagancho para grapa | M163: 117 | N163: unidad | O163: 918 | P163: 107406 | Q163: 917
A164: Modificación de artículo o servicio | B164: 153 | C164: separador plastico carta paquete x 5 | E164: 109 | F164: paquete x cinco | G164: 741 | H164: 80769 | I164: 917 | K164: separador plastico carta paquete x 5 | M164: 119 | N164: unidad | O164: 741 | P164: 88179 | Q164: 917
A165: Modificación de artículo o servicio | B165: 154 | C165: separador plastico oficina paquete x 5 | E165: 119 | F165: paquete x cinco | G165: 824 | H165: 98056 | I165: 917 | K165: separador plastico oficina paquete x 5 | M165: 130 | N165: paquete x cinco | O165: 824 | P165: 107120 | Q165: 917
A166: Modificación de artículo o servicio | B166: 155 | C166: silicona liquida | E166: 46 | F166: unidad | G166: 1912 | H166: 87952 | I166: 917 | K166: silicona liquida | M166: 62 | N166: unidad | O166: 1912 | P166: 118544 | Q166: 917
A167: Modificación de artículo o servicio | B167: 156 | C167: sobre carta paquete x 100 | E167: 30 | F167: paquete x cien | G167: 4706 | H167: 141180 | I167: 917 | K167: sobre carta paquete x 100 | M167: 36 | N167: paquete x cien | O167: 4706 | P167: 169416 | Q167: 917
A168: Modificación de artículo o servicio | B168: 157 | C168: sobre corespondencia paquete x 100 | E168: 14 | F168: paquete x cien | G168: 2652 | H168: 37128 | I168: 917 | K168: sobre corespondencia paquete x 100 | M168: 16 | N168: paquete x cien | O168: 2652 | P168: 42432 | Q168: 917
A169: Modificación de artículo o servicio | B169: 158 | C169: sobre de felpa para cd | E169: 100 | F169: unidad | G169: 47 | H169: 4700 | I169: 917 | K169: sobre de felpa para cd | M169: 219 | N169: undiad | O169: 47 | P169: 10293 | Q169: 917
A170: Modificación de artículo o servicio | B170: 159 | C170: sobre de manila carta paquete x 100 | E170: 69 | F170: paquete x cien | G170: 4706 | H170: 324714 | I170: 917 | K170: sobre de manila carta paquete x 100 | M170: 76 | N170: paquete x cien | O170: 4706 | P170: 357656 | Q170: 917
A171: Modificación de artículo o servicio | B171: 160 | C171: sobre de manila extra oficio paquete x 100 | E171: 20 | F171: paquete x cien | G171: 7075 | H171: 141500 | I171: 917 | K171: sobre de manila extra oficio paquete x 100 | M171: 28 | N171: paquete x cien | O171: 7075 | P171: 198100 | Q171: 917
A172: Modificación de artículo o servicio | B172: 161 | C172: sobre de manila medio oficio paquete x 100 | E172: 10 | F172: paquete x cien | G172: 3647 | H172: 36470 | I172: 917 | K172: sobre de manila medio oficio paquete x 100 | M172: 17 | N172: paquete x cien | O172: 3647 | P172: 61999 | Q172: 917
A173: Modificación de artículo o servicio | B173: 162 | C173: sobre de manila oficio paquete x 100 | E173: 77 | F173: paquete x cien | G173: 5529 | H173: 425733 | I173: 917 | K173: sobre de manila oficio paquete x 100 | M173: 93 | N173: paquete x cien | O173: 5529 | P173: 514197 | Q173: 917
A174: Modificación de artículo o servicio | B174: 164 | C174: sobre medio oficio paquete x 100 | E174: 17 | F174: paquete x cien | G174: 3647 | H174: 61999 | I174: 917 | K174: sobre medio oficio paquete x 100 | M174: 25 | N174: paquete x cien | O174: 3647 | P174: 91175 | Q174: 917
A175: Modificación de artículo o servicio | B175: 165 | C175: sobre oficio paquete x 100 | E175: 10 | F175: paquete x cien | G175: 5529 | H175: 55290 | I175: 917 | K175: sobre oficio paquete x 100 | M175: 20 | N175: paquete x cien | O175: 5529 | P175: 110580 | Q175: 917
A176: Modificación de artículo o servicio | B176: 166 | C176: sobre para archivo carta | E176: 100 | F176: undiad | G176: 128 | H176: 12800 | I176: 917 | K176: sobre para archivo carta | M176: 105 | N176: unidad | O176: 128 | P176: 13440 | Q176: 917
A177: Modificación de artículo o servicio | B177: 167 | C177: sobre para archivo oficio | E177: 101 | F177: unidad | G177: 160 | H177: 16160 | I177: 917 | K177: sobre para archivo oficio | M177: 108 | N177: unidad | O177: 160 | P177: 17280 | Q177: 917
A178: Modificación de artículo o servicio | B178: 168 | C178: tabla planillera | E178: 35 | F178: unidad | G178: 2259 | H178: 79065 | I178: 917 | K178: tabla planillera | M178: 45 | N178: unidad | O178: 2259 | P178: 101655 | Q178: 917
A179: Modificación de artículo o servicio | B179: 171 | C179: taco de papel | E179: 24 | F179: unidad | G179: 941 | H179: 22584 | I179: 917 | K179: taco de papel | M179: 55 | N179: unidad | O179: 941 | P179: 51755 | Q179: 917
A180: Modificación de artículo o servicio | B180: 172 | C180: tajalapiz | E180: 115 | F180: unidad | G180: 246 | H180: 28290 | I180: 917 | K180: tajalapiz | M180: 145 | N180: unidad | O180: 246 | P180: 35670 | Q180: 917
A181: Modificación de artículo o servicio | B181: 173 | C181: tijera en acero inoxidable | E181: 36 | F181: unidad | G181: 1929 | H181: 69444 | I181: 917 | K181: tijera en acero inoxidable | M181: 49 | N181: unidad | O181: 1929 | P181: 94521 | Q181: 917
A182: Modificación de artículo o servicio | B182: 174 | C182: tijera punta roma | E182: 23 | F182: unidad | G182: 1022 | H182: 23506 | I182: 917 | K182: tijera punta roma | M182: 54 | N182: unidad | O182: 1022 | P182: 55188 | Q182: 917
A183: Modificación de artículo o servicio | B183: 175 | C183: tinta marcador borrable recargable | E183: 10 | F183: unidad | G183: 1400 | H183: 14000 | I183: 917 | K183: tinta marcador borrable recargable | M183: 17 | N183: unidad | O183: 1400 | P183: 23800 | Q183: 917
A184: Modificación de artículo o servicio | B184: 176 | C184: tinta para sello 28 a 30 cc negro | E184: 30 | F184: unidad | G184: 1171 | H184: 35130 | I184: 917 | K184: tinta para sello 28 a 30 cc negro | M184: 44 | N184: unidad | O184: 1171 | P184: 51524 | Q184: 917
A185: Modificación de artículo o servicio | B185: 177 | C185: tinta para sello para documenteo historico y archivistico 28 a 30 c azul | E185: 10 | F185: uniddad | G185: 1171 | H185: 11710 | I185: 917 | K185: tinta para sello para documenteo historico y archivistico 28 a 30 c azul | M185: 11 | N185: unidad | O185: 1171 | P185: 12881 | Q185: 917
A186: Modificación de artículo o servicio | B186: 178 | C186: tinta para sello para documenteo historico y archivistico 28 a 30 c negro | E186: 20 | F186: undiad | G186: 1171 | H186: 23420 | I186: 917 | K186: tinta para sello para documenteo historico y archivistico 28 a 30 c negro | M186: 21 | N186: unidad | O186: 1171 | P186: 24591 | Q186: 917
A187: Modificación de artículo o servicio | B187: 181 | C187: tinta para sello x 500 cc negro | E187: 12 | F187: unidad | G187: 8082 | H187: 96984 | I187: 917 | K187: tinta para sello x 500 cc negro | M187: 2 | N187: unidad | O187: 8082 | P187: 16164 | Q187: 917
G189: Cantidad de celdas a agregar: | I189: 1
A192: Sección 5: Resultados de la modificación
A194: Número de la línea según O.C. | B194: Nombre del artículo | F194: Valores actuales | I194: Nuevos valores
B195: Valor de la línea IVA en la Orden de Compra: | F195: =ROUND(M195, 2) -> 13777992.5 | I195: 19877248.5 | M195: 13777992.5
B196: Valor de la línea AIU en la Orden de Compra:
B197: Valor de la línea gravámenes adicionales en la Orden de Compra:
L199: 07 MARZO DE 2017
B202: Firma ordenador del gasto | G202: Firma de Proveedor | L202: Fecha de elaboración
A204: Nombre: | B204: LEONARADO BARRETO GAITAN | F204: Nombre: | G204: DIEGO PAVA PIÑEROS | K204: Las partes manifestamos que este mismo documento se cargará en la plataforma en formato Excel (.xlsm) y los cambios se pueden validar con el mismo.
A205: Documento de Identidad: | B205: 93,085,869 DE GUAMO TOLIMA | E205: Documento de Identidad: | G205: 1.010.160.734 DE BOGOTA

Sheet Instructivo de Diligenciamiento
B4: Instrucciones de diligenciamiento: Colombia Compra Eficiente ha diseñado este formato para que las Entidades Compradoras puedan realizar aclaraciones, modificaciones, cancelaciones o terminaciones y liquidaciones de las Órdenes de Compra que estén en ejecución y vigentes, o ejecutadas. Para ello debe indicar: Datos generales: Datos básicos como número de la Orden de Compra que requiere cambiar, número consecutivo de solicitud tenga en cuenta que la primera solicitud corresponderá a la número “1”, nombre de la Entidad Compradora, nombre de la persona que solicita las acciones, celular o número de teléfono y extensión, NIT de la Entidad Compradora y el nombre del Proveedor que ejecuta la Orden de Compra. Sección 1. Tipo de acción: Las Entidades pueden solicitar cuatro tipos de acciones respecto de las Órdenes de Compra: (i) Aclaraciones: Son las indicaciones de cambio de información que no afectan el plazo, el valor o las condiciones contractuales de las Órdenes de Compra como: redacción en las condiciones de entrega, errores de digitación o rectificación de la fecha de vencimiento. Estas aclaraciones no requieren de la aceptación del Proveedor. Sin embargo una vez realizada la aclaración en la Orden de Compra, la Entidad Compradora debe notificarle al Proveedor el cambio. (ii) Modificaciones: Son indicaciones de cambio en aumento o disminución de valor o plazo, aumento o disminución de los bienes o servicios solicitados, cambios en las condiciones de ejecución o datos que afecten la ejecución de la Orden de Compra. Solo en los casos de cambio de supervisor y datos de notificación como dirección o teléfono se puede omitir la firma del Proveedor. Sin embargo una vez realizada la modificación, la Entidad Compradora debe notificarle al Proveedor el cambio. (iii) Cancelación: Es la manifestación de la Entidad de no iniciar la ejecución de la Orden de Compra la cual también debe ser aceptada por el Proveedor. (iv) Terminación y Liquidación: Este tipo de acción es mediante la cual una Entidad Compradora formaliza la terminación y liquidación de las obligaciones derivadas de la Orden de Compra y así establece las acreencias pendientes a favor o en contra de cada parte de la Orden de Compra, también sirve para aclarar la ejecución de la misma o realizar la terminación anticipada en caso de que las partes así lo deseen. Este tipo de acción se debe aplicar dentro de los términos establecidos en cada Acuerdo Marco de Precios, para lo cual se requiere la solicitud por parte de la Entidad Compradora firmada por el Ordenador del Gasto y el representante legal del Proveedor, así como el informe del supervisor de la Orden de Compra. Sección 2. Justificación: Las razones de la realización del cambio de la Orden de Compra. Sección 3. Modificación información general: la idea en esta sección es indicar cuales son los datos de información general de la orden de compra que requiere cambiar Sección 4. Modificación de artículos o servicios: esta sección unicamente aplica en caso de que la acción a realizar sea modificar o terminar y liquidar la orden de compra, allí deberá indicar el tipo de midificación que desea realizar e ingresar o modificar los articulos que desea ajustar. Al momento de diligenciar esta sección tenga en cuenta las siguientes recomendaciones: (i) Las correcciones en el plazo de ejecución son diferentes a las modificaciones en el plazo, ejemplo: la Entidad Compradora adquirió elementos con tres entregas parciales pero digitó como fecha final de la Orden de Compra la fecha de la primera entrega, para corregir esto la Entidad Compradora selecciona en tipo de acción: aclaración y en el campo de fecha de vencimiento indica la fecha correcta. En el caso que fuera cambio de fecha fin, ejemplo: prorrogar o disminuir varios meses la ejecución de la Orden de Compra se utiliza en tipo de acción: modificación. (ii) para la realización de las modificaciones tenga en cuenta las secciones de modificación de cada una de las guías de compra (iii) los valores y cantidades solo pueden tener hasta dos decimales. (iv) la decisión de modificar, adicionar o combinar las dos opciones dependerá de las necesidades de cada Entidad Compradora, ejemplo si es un servicio y adicionalmente solo requiere modificar “cantidad” se recomienda seleccionar “modificación de artículo”, cuando son bienes puede modificar cualquiera de los demás campos. (v) si requiere cambio de condiciones de un servicio ya ejecutado se recomienda modificar la línea para que se refleje la parte ejecutada y adicionar una nueva línea para las nuevas condiciones del servicio que va a ejecutar. Sección 5. Resultados de la modificación: La entidad siempre debe indicar en el recuadro el valor total del IVA, AIU, gravámenes adicionales, estos campos serán los valores finales que quedarán en la Orden de Compra después de la modificación, tenga en cuenta que el campo de IVA no aplica para algunos AMP como: papelería, vehículos y SOAT y que el campo de AIU solo aplica para aseo y cafetería. Firmas del documento: El ordenador del gasto de la Entidad Compradora debe firmar el documento y enviarlo al Proveedor para que lo acepte y firme, en caso de que así se requiera. El documento firmado debe ser enviado a través del aplicativo dispuesto por Colombia Compra Eficiente para realizar las acciones solicitadas. Fecha de elaboración del documento: Corresponde a la fecha en la que la Entidad Compradora y el Proveedor llegaron a un acuerdo para realizar las acciones y se suscribe el documento, recuerde que: (i) para poder realizar modificaciones en las Órdenes de Compra las mismas se deben acordar dentro de la vigencia de la Orden de Compra, (ii) Las órdenes de compra no se podrán modificar si ya se encuentran vencidas, (iii) Se da por realizada la modificación o acción que requiera realizar la Entidad, desde le momento en que las partes la firmen. Colombia Compra Eficiente lo único que realiza en la Tienda Virtual es el proceso de publicación de la modificación o ajuste que las partes hayan acordado a través de la firma de este documento. Si la Entidad Compradora requiere agregar archivos que estén relacionados con las acciones a realizar como: copia del CDP y/o aprobación de Vigencia Futura (VF) que soporta la adición, soportes documentales, correos, cartas, etc... debe publicarlos junto con el documento de modificación suscrito en un único archivo .Pdf con alta resolución de escaneo, si el documento no es legible se tomaran los cambios contenidos en el formato Excel, tenga en cuenta que Colombia Compra Eficiente únicamente publicará las modificaciones especificadas en el formato enviado por el aplicativo.

Sheet Listas (hidden)
A1: TipoDeModificacion | C1: Modificacion
A2: Modificación de la Orden de Compra | C2: Modificación de artículo o servicio
A3: Aclaración a la Orden de Compra | C3: Agregar nuevo artículo o servicio
A4: Cancelación de la Orden de Compra | C4: Eliminar artículo o servicio
A5: Terminación y Liquidación de la Orden de Compra | C5: Ninguna
